[Event "Mongolian Championship Women 2022"]
[Site "Chingis Khentii"]
[Date "2022.05.20"]
[Round "8.1"]
[White "Altantuya, Boldbaatar"]
[Black "Munkhzul, Davaakhuu"]
[Result "1/2-1/2"]
[ECO "D30"]
[WhiteElo "2263"]
[BlackElo "1991"]
[Annotator "TA"]
[PlyCount "221"]
[EventDate "2022.05.12"]
[EventType "tourn"]
[EventCountry "MGL"]
[SourceTitle "playchess.com"]
[Source "ChessBase"]
[SourceQuality "1"]
[TimeControl "40/5400+30:1800+30"]

{[%evp 9,221,-28,-30,-40,-14,-34,-34,-37,-43,-43,-43,-54,-51,-66,-57,-48,-22,-35,-11,-52,-20,-14,-14,-23,-11,-39,0,0,2,-15,-30,-29,22,14,7,20,15,14,8,0,0,0,6,-16,-6,-10,-12,-13,-16,-86,-104,-120,-52,-170,-141,-279,-283,-302,-242,-270,-154,-154,-162,-225,-241,-233,-216,-453,-430,-413,-358,-618,-606,-495,-329,-320,-206,-258,-258,-363,-360,-387,-385,-408,-343,-576,-531,-546,-388,-510,-478,-465,-438,-620,-601,-698,-698,-5981,-5981,-5722,-4129,-896,-733,-724,-659,-29979,-29980,-29978,-6059,-6059,-6059,-6059,-6059,-5834,-751,-744,-518,-479,-423,-720,-640,-591,-441,-572,-474,-462,-369,-363,0,-348,-339,-533,-386,-741,-731,-1228,-1142,-5169,-920,-1193,-1103,-960,-1102,-1100,-634,-807,-984,-1121,-1102,-1092,-1060,-1025,-968,-1067,-1048,-1063,-998,-900,-872,-4137,-1262,-1217,-1209,-4129,-667,-1142,-1129,-1115,-666,-666,-666,-651,-651,-647,-640,-633,-633,-618,-595,-567,-516,-466,-297,-466,-291,-1031,-980,-968,-198,-872,-130,-130,-12,-27,0,-130,-102,-131,-131,-131,-102,-95,-103,-103,-103,-110,-8,-8,-8,-8,-8,-8,0,-8]} 1. d4 {[%emt 0:00:03]} Nf6 {[%emt 0:00:14]} 2. c4 {[%emt 0:00:12]} e6 {[%emt 0:00:03]} 3. Nf3 {[%emt 0:00:14]} d5 {[%emt 0:00:20]} 4. a3 {[%emt 0:00:15]} dxc4 {[%emt 0:09:16]} 5. Qa4+ {[%emt 0:00:14]} Nbd7 {[%emt 0:01:35]} 6. Qxc4 {[%emt 0:00:09] D30: Queen's Gambit Declined: Systems without Nc3.} a6 {[%emt 0:01:10] [#]} 7. Bf4 $146 {[%emt 0:06:18]} ({Predecessor:} 7. Bg5 c5 8. e3 b5 9. Qc2 Bb7 10. dxc5 Bxc5 11. b4 Be7 12. Nbd2 Rc8 13. Qb2 O-O 14. Be2 h6 15. Bh4 Ne4 16. Bxe7 Qxe7 17. Nxe4 Bxe4 18. Rc1 Qf6 19. Qd2 {0-1 (19) Tyszkiewicz,Z (2093)-Grabarczyk,M (2464) Warsaw 2007}) 7... c5 {[%emt 0:13:47]} 8. dxc5 {[%emt 0:04:00] Black is slightly better.} Bxc5 {[%emt 0:03:30]} 9. e3 {[%emt 0:07:33]} b5 {[%emt 0:01:17]} 10. Qc2 {[%emt 0:00:12]} Bb7 {[%emt 0:01:18]} 11. Nc3 {[%emt 0:02:37]} Rc8 {[%emt 0:13:19]} 12. Be2 {[%emt 0:02:04]} O-O {[%emt 0:00:54]} 13. O-O {[%emt 0:01:40]} Qe7 {[%emt 0:01:08]} (13... Be7 {is interesting.} 14. Rfd1 Nd5 15. Ne5 Nc5) 14. Rfc1 {[%emt 0:03:31]} e5 {[%emt 0:05:49]} 15. Bg3 {[%emt 0:00:56]} Bd6 {[%emt 0:06:24][%cal Of6e4]} 16. Nd2 {[%emt 0:06:59] Inhibits Ne4.} Nc5 {[%emt 0:06:19]} 17. Qb1 {[%emt 0:17:46]} Bb8 {[%emt 0:02:50]} 18. b4 {[%emt 0:01:54]} Rfd8 {[%emt 0:06:33]} 19. Rd1 {[%emt 0:05:16]} Ne6 {[%emt 0:02:13]} 20. Qb2 {[%emt 0:00:50] [#]} Ne8 {[%emt 0:12:07]} (20... Nf4 $142 $1 21. Bf1 (21. exf4 $2 exf4 22. Nb3 fxg3 $19) 21... N4h5) 21. a4 $11 {[%emt 0:08:04]} f5 {[%emt 0:03:25]} 22. axb5 {[%emt 0:10:05]} axb5 {[%emt 0:00:06]} 23. f3 {[%emt 0:00:29]} (23. Bxb5 f4 24. Qb3 (24. exf4 $2 exf4 25. Re1 fxg3 $19) 24... fxg3 25. hxg3 Kh8 26. Bxe8 Rxe8 $17) 23... f4 {[%emt 0:00:52]} 24. Bf2 {[%emt 0:00:37]} fxe3 {[%emt 0:02:31]} 25. Bxe3 {[%emt 0:00:02]} Nd4 $132 {[%emt 0:00:32][%cal Oc8c3][%mdl 2048] Black has counterplay} 26. Bxb5 {[%emt 0:05:07] [#]} Rxc3 $1 {[%emt 0:00:24][%mdl 64] Remove Defender} 27. Qxc3 {[%emt 0:01:17][%cal Od2b3]} Nxb5 {[%emt 0:00:09]} 28. Qc4+ {[%emt 0:00:18]} Rd5 {[%emt 0:00:10]} 29. Ra5 {[%emt 0:04:51]} (29. Ne4 $11 {keeps the balance.} Nbd6 30. Qb3) 29... Ned6 $17 {[%emt 0:00:16]} 30. Qb3 {[%emt 0:01:43]} Qf7 {[%emt 0:00:12]} (30... Kh8 $1 $17 {And now ...Bc7 would win.} 31. Bc5 Nd4) 31. Bc5 {[%emt 0:01:32]} (31. Ne4 $15) 31... Nd4 {[%emt 0:01:09]} 32. Qe3 {[%emt 0:04:22]} (32. Bxd4 $17 {was the only defense.} Rxd4 33. Qxf7+ Nxf7 34. Raa1) 32... N6f5 $19 {[%emt 0:01:24]} 33. Qe1 {[%emt 0:01:57]} h6 {[%emt 0:00:48]} 34. Bxd4 {[%emt 0:03:39]} Nxd4 {[%emt 0:00:40]} ({Black should try} 34... Rxd4 $19 35. Ne4 Ne3 $1 {[%mdl 512]}) 35. Rxd5 $17 {[%emt 0:00:26]} Bxd5 {[%emt 0:00:55]} 36. Ne4 {[%emt 0:00:42]} (36. Kh1 $142) 36... Ba7 $19 {[%emt 0:01:17] This bishop pair is nice.} 37. Nc5 {[%emt 0:00:31]} Qg6 {[%emt 0:01:16]} 38. Kh1 $2 {[%emt 0:00:30] [#]} (38. Kf1) 38... Nxf3 $1 {[%emt 0:01:06][%mdl 512]} 39. Qf2 {[%emt 0:00:27]} Nd4 {[%emt 0:01:13]} 40. Rf1 $2 {[%emt 0:00:00]} (40. Qg3 Qh5 41. Qd3) 40... Bxc5 {[%emt 0:00:00]} 41. bxc5 {[%emt 0:00:39]} Qe8 {[%emt 0:02:57]} 42. Re1 {[%emt 0:00:50][%cal Of2d4]} Nc6 {[%emt 0:05:08]} 43. Rd1 {[%emt 0:01:40]} Qe6 {[%emt 0:00:37]} 44. Qd2 {[%emt 0:00:52]} (44. Kg1 $142) 44... Ne7 {[%emt 0:02:48]} ({Wrong is} 44... Nd4 $2 45. Re1 $19) 45. Qb4 {[%emt 0:02:00]} Kh7 {[%emt 0:05:41]} 46. Re1 {[%emt 0:08:07]} Qc6 {[%emt 0:02:49]} 47. Rxe5 $2 {[%emt 0:03:12]} (47. Qb1+ Ng6 48. Qc2) 47... Bxg2+ {[%emt 0:01:04]} 48. Kg1 {[%emt 0:00:01]} Ng6 {[%emt 0:00:47]} 49. Re2 {[%emt 0:03:24]} Bd5 {[%emt 0:00:20]} 50. Qd4 {[%emt 0:01:28]} Nf8 {[%emt 0:07:35]} 51. Rd2 {[%emt 0:02:30]} (51. Re5 $142 Qg6+ 52. Kf2) 51... Qg6+ {[%emt 0:00:54]} 52. Kf1 {[%emt 0:00:03]} Bc6 {[%emt 0:01:25]} 53. Qd6 {[%emt 0:04:12]} Bb5+ {[%emt 0:00:06]} 54. Kf2 {[%emt 0:00:10]} Qf5+ {[%emt 0:00:08]} 55. Ke3 {[%emt 0:00:51]} Ng6 {[%emt 0:00:49]} 56. Kd4 {[%emt 0:03:27]} Qg4+ {[%emt 0:01:47]} 57. Ke3 {[%emt 0:03:51]} Qg5+ {[%emt 0:01:04]} 58. Ke4 {[%emt 0:01:06] [#]} Bc6+ $1 {[%emt 0:01:47][%mdl 512]} 59. Kd3 {[%emt 0:00:08]} Ne5+ {[%emt 0:00:30]} 60. Kc3 {[%emt 0:00:38]} Qe3+ {[%emt 0:00:39]} 61. Kb4 {[%emt 0:00:22]} Qe4+ {[%emt 0:01:09]} (61... Qe1 $142 62. Qd4 Nf3 63. Qd3+ g6) 62. Qd4 {[%emt 0:01:07]} Qb1+ {[%emt 0:00:20]} 63. Ka3 {[%emt 0:00:21]} Qc1+ {[%emt 0:01:30]} ({Don't blunder} 63... Qb5 $2 64. Qxe5 Qa5+ 65. Kb3 Ba4+ 66. Kc4 Bb5+ 67. Kb3 Qxd2 68. Qf5+ Kg8 69. Qe6+ Kf8 70. c6 $19) 64. Kb4 {[%emt 0:00:57]} (64. Kb3 $142 Nf3 65. Qd3+ g6 66. Rd1 Qxc5 67. Qd6 Qb6+ 68. Kc3) 64... Qe1 {[%emt 0:00:34] Strongly threatening ...Nf3.} 65. Qc3 {[%emt 0:00:44] [#]} Be4 $1 {[%emt 0:00:49]} 66. Ka4 {[%emt 0:00:38]} (66. Kb3 Bf5) 66... Nf3 {[%emt 0:00:48]} 67. Rd3 {[%emt 0:00:27]} Qh4 {[%emt 0:00:19]} 68. Ka3 {[%emt 0:00:34]} Ng5 $2 {[%emt 0:00:37]} ({Worse is} 68... Nxh2 69. Rd7 Qg5 70. c6 $15) (68... Qe7 $19 {White must now prevent ...Qa7+.} 69. Rxf3 Qa7+ 70. Kb2 Qb7+ 71. Qb3 Bxf3) 69. Rd2 $2 {[%emt 0:00:22][%mdl 8192]} (69. Rd7 $11 {and White is okay.} Ne6 70. c6) 69... Qf4 {[%emt 0:00:17]} 70. Kb2 {[%emt 0:00:40]} (70. Rd4 {was worth a try.}) 70... Ne6 {[%emt 0:00:35][%cal Oe6c5] ...Nxc5! is the strong threat.} 71. Re2 $2 {[%emt 0:00:30]} (71. Rd7) 71... Qf5 {[%emt 0:00:53]} 72. Rd2 {[%emt 0:00:46]} Nxc5 {[%emt 0:00:12]} 73. Qd4 {[%emt 0:00:20] Prevents Na4+.} Ne6 {[%emt 0:00:30]} (73... Qf4 $142 74. Kc3 Qf3+ 75. Kc4 Nb3) 74. Qb4 {[%emt 0:00:10]} Qe5+ {[%emt 0:00:19]} 75. Qc3 {[%emt 0:00:46]} Qxc3+ {[%emt 0:00:22]} 76. Kxc3 {[%emt 0:00:03]} Kg6 {[%emt 0:00:18]} 77. Rd6 {[%emt 0:00:35]} Kf6 {[%emt 0:00:14]} 78. Kd2 {[%emt 0:00:06]} g5 {[%emt 0:00:10]} 79. Ke3 {[%emt 0:00:12]} Bf5 {[%emt 0:00:07]} 80. Ra6 {[%emt 0:00:54]} g4 {[%emt 0:00:25]} 81. Kf2 {[%emt 0:00:24]} h5 {[%emt 0:00:17]} 82. Rb6 {[%emt 0:00:39]} Kg5 {[%emt 0:00:11]} 83. Rb3 {[%emt 0:00:50]} Nd4 {[%emt 0:00:15]} 84. Ra3 {[%emt 0:00:09]} Kh4 {[%emt 0:00:43]} (84... Nf3 $142 85. Kg2 Kf4) 85. Ra4 {[%emt 0:01:00]} Nf3 {[%emt 0:00:33]} 86. Ra5 {[%emt 0:00:23]} Bg6 {[%emt 0:02:02]} (86... Kg5 $142 87. Kg2 Kf4) 87. Kg2 {[%emt 0:00:08]} Be4 {[%emt 0:00:29]} 88. Rc5 {[%emt 0:00:21]} Ng5+ {[%emt 0:00:52]} 89. Kf2 {[%emt 0:00:16]} Bf3 {[%emt 0:00:34] ( -> ...Ne4+)} 90. Ra5 {[%emt 0:00:47]} Nh3+ {[%emt 0:00:46]} 91. Ke3 {[%emt 0:00:09]} Bd1 {[%emt 0:00:29] Threatens to win with ...g3.} 92. Rd5 {[%emt 0:00:14]} Bc2 {[%emt 0:00:31]} 93. Rc5 {[%emt 0:00:21]} Bg6 {[%emt 0:00:15]} 94. Ra5 {[%emt 0:00:20]} Ng5 {[%emt 0:00:30]} 95. Kf2 {[%emt 0:00:07]} Ne4+ {[%emt 0:00:19]} 96. Kg2 {[%emt 0:00:18]} (96. Ke3 $142) 96... Nf6 {[%emt 0:00:07][%cal Of6d5]} 97. Ra6 $2 {[%emt 0:01:47]} (97. Kf2) 97... Kg5 {[%emt 0:00:15] Hoping for ...h4.} 98. h3 {[%emt 0:01:30]} Bf5 $2 {[%emt 0:01:40]} (98... Be4+ 99. Kh2 Nd5 100. hxg4 hxg4) 99. hxg4 $2 {[%emt 0:00:38]} (99. h4+ Kg6 100. Kg3) 99... Nxg4 $2 {[%emt 0:00:14]} (99... hxg4 $19 {is more deadly.} 100. Kh2 Be4) 100. Ra5 $17 {[%emt 0:00:24] [#]} Kf4 {[%emt 0:00:26]} (100... Kh4 $1 $17 {aiming for ...Be4+.} 101. Kf3 Kg5) 101. Ra4+ {[%emt 0:00:25]} Kg5 {[%emt 0:00:21]} (101... Be4+ $11 102. Kh3 {[#]} Kg5 $1 103. Ra5+ Bf5) 102. Ra5 {[%emt 0:00:09]} Nf6 {[%emt 0:00:10]} 103. Kg3 {[%emt 0:00:36]} Ne4+ {[%emt 0:00:27]} 104. Kf3 {[%emt 0:00:15]} h4 {[%emt 0:00:34]} 105. Rd5 {[%emt 0:01:01]} Nf6 {[%emt 0:01:25]} 106. Ra5 {[%emt 0:00:06]} Nh5 {[%emt 0:00:12]} 107. Rb5 {[%emt 0:00:59]} h3 {[%emt 0:00:43]} (107... Nf4 $17 108. Ra5 Ne6) 108. Ra5 $11 {[%emt 0:00:06] The position is equal.} Nf4 {[%emt 0:00:38]} 109. Kg3 {[%emt 0:00:05]} Ne2+ {[%emt 0:00:24]} 110. Kh2 {[%emt 0:00:03]} Nf4 {[%emt 0:00:33]} 111. Kg3 {[%emt 0:00:04] And White is the lucky defender.  Weighted Error Value: White=0.61/Black=0.37} 1/2-1/2

[Event "Mongolian Championship Women 2022"]
[Site "Chingis Khentii"]
[Date "2022.05.20"]
[Round "8.2"]
[White "Munguntuul, Batkhuyag"]
[Black "Bayarmaa, Bayarjargal"]
[Result "0-1"]
[ECO "B90"]
[WhiteElo "2443"]
[BlackElo "2124"]
[Annotator "TA"]
[PlyCount "70"]
[EventDate "2022.05.12"]
[EventType "tourn"]
[EventCountry "MGL"]
[SourceTitle "playchess.com"]
[Source "ChessBase"]
[SourceQuality "1"]
[TimeControl "40/5400+30:1800+30"]

{[%evp 10,70,22,0,0,11,0,-2,11,-12,0,-22,-20,-5,-27,-49,-49,-57,-58,-50,-37,-85,-83,-76,-60,-63,-70,-65,-50,-130,-106,-93,-37,-186,-196,-201,-171,-310,-309,-317,-310,-441,-181,-181,-183,-176,-191,-605,-609,-584,-519,-590,-569,-2428,-2185,-2247,-1889,-29976,-29977,-29975,-29976,-29970,-29974]} 1. e4 {[%emt 0:00:01] Fischer,J} c5 {[%emt 0:00:04]} 2. Nf3 {[%emt 0:00:04]} d6 {[%emt 0:00:07]} 3. d4 {[%emt 0:00:01]} cxd4 {[%emt 0:00:08]} 4. Nxd4 {[%emt 0:00:02]} Nf6 {[%emt 0:00:10]} 5. Nc3 {[%emt 0:00:07]} a6 {[%emt 0:00:04]} 6. Nb3 {[%emt 0:00:03]} Nbd7 {[%emt 0:00:42] B90: Sicilian Najdorf: Unusual White 6th moves, 6 Be3 Ng4 and 6 Be3 e5.} 7. g4 {[%emt 0:04:55]} h6 {[%emt 0:00:07]} 8. Bg2 {[%emt 0:03:37]} b5 {[%emt 0:00:23][%cal Bb7b5,Bb5b4][%mdl 32] The position is equal.} 9. h4 {[%emt 0:07:49] And now g5 would win.} (9. e5 Nxe5 $1 10. h3 (10. Bxa8 Bxg4 11. Bc6+ Nxc6 $17) 10... Rb8 $15) 9... b4 {[%emt 0:03:46]} 10. Nd5 {[%emt 0:02:06]} Nxd5 {[%emt 0:00:19]} (10... Ne5 {is interesting.} 11. g5 hxg5 12. Bxg5 Nxd5 13. exd5 a5) 11. exd5 {[%emt 0:00:14]} Ne5 {[%emt 0:01:28]} 12. f3 {[%emt 0:09:35]} g6 {[%emt 0:01:19] [#]} 13. a3 $146 {[%emt 0:11:28]} ({Predecessor:} 13. Be3 Bg7 14. Bd4 O-O 15. g5 a5 16. gxh6 Bxh6 17. h5 Bf4 18. Nc1 Bg3+ 19. Kf1 {0-1 (45) Kanarek,M (2532)-Wojtaszek,R (2713) Poznan 2016 CBM 172 [Fischer,J]}) 13... bxa3 {[%emt 0:06:52]} 14. Rxa3 {[%emt 0:00:11]} Bg7 {[%emt 0:00:24]} 15. Na5 {[%emt 0:02:53]} (15. h5 $15) 15... Qb6 $17 {[%emt 0:09:15]} 16. Qe2 {[%emt 0:03:57]} O-O {[%emt 0:03:37][%cal Bh8f8,Bf8c8,Bc8c4][%mdl 32]} 17. c4 {[%emt 0:09:15]} Rb8 {[%emt 0:04:54]} 18. Kf1 {[%emt 0:07:38]} Bd7 {[%emt 0:05:09] ...Rfc8 is the strong threat.} 19. Bh3 {[%emt 0:00:41]} ({White should play} 19. b3 $15) 19... g5 {[%emt 0:03:28] Black is more active.} 20. hxg5 {[%emt 0:04:13]} hxg5 {[%emt 0:00:11]} 21. Rh2 {[%emt 0:15:04] Now White is beyond hope.} (21. Bxg5 $15 Qxb2 22. Ra2 (22. Qxb2 Rxb2 23. Kg1 Rfb8 $17) 22... Qxe2+ 23. Kxe2) 21... Rfc8 $19 {[%emt 0:03:05]} 22. b3 {[%emt 0:00:40]} Qd4 {[%emt 0:08:00]} 23. Bxg5 {[%emt 0:05:50] [#]} (23. Rh1 $142) 23... Nxc4 $1 {[%emt 0:03:58][%mdl 512]} 24. Nxc4 {[%emt 0:00:05]} Rxc4 {[%emt 0:00:05]} 25. Be3 {[%emt 0:01:31] [#] Prevents Rc1+.} (25. Qxc4 $2 Bb5 26. Rf2 Bxc4+ 27. bxc4 Qxc4+ 28. Kg2 Bd4 $19) (25. Qd2 $142) 25... Qc3 {[%emt 0:07:12]} (25... Rc1+ $142 $3 {[%mdl 512]} 26. Kg2 (26. Bxc1 $2 {perishes.} Bb5 $19) 26... Qe5) 26. Bd2 {[%emt 0:00:20]} Qb2 {[%emt 0:01:20]} 27. bxc4 {[%emt 0:01:05]} Qxa3 {[%emt 0:00:32]} 28. g5 $2 {[%emt 0:02:29]} (28. Rf2) 28... Bxh3+ 29. Rxh3 {[%emt 0:00:02]} Rb1+ {[%emt 0:15:55]} 30. Kg2 {[%emt 0:00:03]} Rb2 {[%emt 0:01:11] White must now prevent ...Qa2.} ({Weaker is} 30... Qc5 31. Be3 Qa3 32. Bf2 $17 (32. Qc2 $2 Rb2 $19)) 31. Rh1 {[%emt 0:09:14]} Qa2 {[%emt 0:00:57]} 32. Rd1 {[%emt 0:00:03]} Bc3 {[%emt 0:00:21][%cal Rc3d2]} 33. Qxe7 {[%emt 0:00:17]} Rxd2+ {[%emt 0:00:12] Black mates.} 34. Rxd2 {[%emt 0:00:01]} Qxd2+ {[%emt 0:00:11]} 35. Kh3 {[%emt 0:00:03]} Be5 {[%emt 0:00:23] Weighted Error Value: White=0.93/Black=0.15 (very precise)} 0-1

[Event "Mongolian Championship Women 2022"]
[Site "Chingis Khentii"]
[Date "2022.05.20"]
[Round "8.3"]
[White "Amin-Erdene, Bayanmunkh"]
[Black "Anu, Bayar"]
[Result "0-1"]
[ECO "E68"]
[WhiteElo "1425"]
[BlackElo "2102"]
[Annotator "TA"]
[PlyCount "86"]
[EventDate "2022.05.12"]
[EventType "tourn"]
[EventCountry "MGL"]
[SourceTitle "playchess.com"]
[Source "ChessBase"]
[SourceQuality "1"]
[TimeControl "40/5400+30:1800+30"]

{[%evp 27,86,48,41,13,20,12,23,-145,-145,-233,-239,-244,-247,-246,-232,-211,-124,-243,-203,-202,-206,-191,-47,-128,-126,-173,0,0,0,-10,-18,-507,-484,-589,-599,-574,-566,-647,-641,-635,-622,-897,-888,-756,-736,-1859,-1852,-1852,-1813,-1358,-965,-943,-822,-29970,-1704,-29987,-29980,-29990,-29991,-29993,-6528]} 1. d4 {[%emt 0:00:02]} Nf6 {[%emt 0:00:02]} 2. Nf3 {[%emt 0:00:06]} g6 {[%emt 0:00:07]} 3. g3 {[%emt 0:00:07]} Bg7 {[%emt 0:00:06]} 4. Bg2 {[%emt 0:00:05]} O-O {[%emt 0:00:07]} 5. O-O {[%emt 0:00:05]} d6 {[%emt 0:00:10]} 6. c4 {[%emt 0:00:24]} Nbd7 {[%emt 0:00:08]} 7. Nc3 {[%emt 0:00:22]} e5 {[%emt 0:00:04]} 8. e4 {[%emt 0:00:09]} exd4 {[%emt 0:00:06]} 9. Nxd4 {[%emt 0:00:02]} Re8 {[%emt 0:00:11]} 10. h3 {[%emt 0:00:28]} a6 {[%emt 0:00:04]} 11. Re1 {[%emt 0:01:35]} Rb8 {[%emt 0:00:13]} 12. Rb1 {[%emt 0:00:27]} Ne5 {[%emt 0:00:09]} 13. b3 {[%emt 0:00:39]} c5 {[%emt 0:00:15]} 14. Nc2 {[%emt 0:01:16]} Nc6 {[%emt 0:01:37]} 15. f4 {[%emt 0:08:10] E68: King's Indian: Fianchetto: 6...Nbd7 7 0-0 e5 8 e4.} Nd4 {[%emt 0:06:19]} (15... Nh5 $5 {[%cal Rg7c3]} 16. Qd3 f5 $14) 16. Nxd4 {[%emt 0:01:43]} cxd4 {[%emt 0:04:11] [#]} 17. Na4 $146 {[%emt 0:03:02]} ({Avoid the trap} 17. Qxd4 $2 Nxe4 $1 {[%mdl 512]} 18. Qxe4 Rxe4 19. Nxe4 Qa5 $19) ({Only move:} 17. Nd5 $11) ({Predecessor:} 17. Nd5 b5 18. Nxf6+ Bxf6 19. cxb5 Rxb5 20. Bb2 Qb6 21. Qd2 a5 22. Red1 Rb4 23. Kh2 {1-0 (55) Straub,N (2159)-Silz,E (1970) Germany 2018}) 17... b5 $17 {[%emt 0:02:15]} 18. cxb5 {[%emt 0:04:00]} (18. Nb2 $17 {keeps fighting.}) 18... axb5 $19 {[%emt 0:07:14]} 19. Nb2 {[%emt 0:00:52]} Bb7 $1 {[%emt 0:01:01][%cal Rf6e4]} 20. e5 {[%emt 0:18:01]} dxe5 {[%emt 0:07:31]} 21. fxe5 {[%emt 0:00:49] And now Bxb7 would win.} Nd7 {[%emt 0:36:38]} (21... Bxg2 $1 $19 22. Kxg2 Nd5) 22. Qxd4 {[%emt 0:04:54]} (22. Bxb7 $17 Rxb7 23. Qxd4) 22... Bxe5 {[%emt 0:05:03]} 23. Qf2 {[%emt 0:04:35]} Bxg2 {[%emt 0:09:20]} 24. Kxg2 {[%emt 0:01:19]} Qf6 {[%emt 0:02:25]} (24... Rc8 $19 {[%cal Oe5d4] aiming for ...Bd4!} 25. Bf4 Rc3) 25. Be3 {[%emt 0:07:58] [#] Prevents Bd4.} (25. Nd3 $15) 25... Bc3 $1 $36 {[%emt 0:02:15][%mdl 2048] White must now prevent ...Qe6. Black is on the roll. Black is more active.} 26. Red1 {[%emt 0:10:12] [#]} (26. Re2 $17 {was necessary.}) 26... Rxe3 $2 {[%emt 0:03:59]} 27. Qxe3 $11 {[%emt 0:04:06]} Bxb2 {[%emt 0:00:13]} 28. Rxd7 {[%emt 0:00:09]} Qc6+ {[%emt 0:00:10]} 29. Kh2 $2 {[%emt 0:00:15][%mdl 8192] This costs White the game.} (29. Qf3 $1 $11 {and White is okay.} Qxd7 30. Rxb2) 29... Qc2+ $19 {[%emt 0:00:49]} ({Stronger than} 29... Qxd7 30. Rxb2 Re8 31. Qd2 $11) 30. Qd2 {[%emt 0:05:40]} Qxb1 {[%emt 0:00:17]} 31. Qf4 {[%emt 0:00:05]} Rf8 {[%emt 0:00:53]} 32. Qf2 {[%emt 0:03:23]} Bc3 {[%emt 0:01:21]} 33. Rc7 {[%emt 0:03:01]} b4 {[%emt 0:00:21]} 34. h4 {[%emt 0:00:28]} h5 {[%emt 0:00:31] ...Be5 is the strong threat.} 35. Re7 {[%emt 0:02:36]} Qd3 {[%emt 0:01:30]} 36. Rc7 {[%emt 0:02:09]} Qd6 {[%emt 0:00:14]} 37. Rc4 {[%emt 0:00:15]} Qe6 {[%emt 0:00:19]} 38. Qg2 {[%emt 0:00:19]} Rd8 {[%emt 0:00:23] ( -> ...Rd2)} 39. Re4 {[%emt 0:00:19]} Qa6 {[%emt 0:00:55] Strongly threatening ...Rd2.} 40. Kh3 {[%emt 0:00:00]} Qc8+ {[%emt 0:00:00]} (40... Rd2 $142 41. Qf3 Qxa2 42. Qh1 Qxb3 43. Qf3 Qa2 44. Re8+ Kg7 45. g4 Rh2+ 46. Kg3 hxg4 47. Qf1 Qd2 48. Kxg4 Qd4+ 49. Kg3 Qxh4+ 50. Kf3 Qf6+ 51. Kg3 Qxf1 52. Kxh2 b3 53. Re7 b2 54. Kg3 b1=Q 55. Re3 Qg1+ 56. Kh4 Qxe3 57. Kg4 Qbe4#) 41. g4 {[%emt 0:01:04]} hxg4+ {[%emt 0:02:32] Black mates.} 42. Rxg4 {[%emt 0:00:06]} Rd3+ {[%emt 0:00:07]} 43. Kh2 {[%emt 0:00:33]} Rd2 {[%emt 0:00:09] Weighted Error Value: White=1.08/Black=0.28 (precise)} (43... Be5+ $142 44. Rg3 Qg4 45. Qa8+ Kg7 46. Qg8+ Kxg8 47. Kg2 Rxg3+ 48. Kf2 Rg2+ 49. Kf1 Qe2#) 0-1

[Event "Mongolian Championship Women 2022"]
[Site "Chingis Khentii"]
[Date "2022.05.20"]
[Round "8.4"]
[White "Khulan, Enkhsaikhan"]
[Black "Nomindalai Tumurbaatar"]
[Result "1-0"]
[ECO "A57"]
[WhiteElo "2111"]
[BlackElo "2111"]
[Annotator "TA"]
[PlyCount "69"]
[EventDate "2022.05.12"]
[EventType "tourn"]
[EventCountry "MGL"]
[SourceTitle "playchess.com"]
[Source "ChessBase"]
[SourceQuality "1"]
[TimeControl "40/5400+30:1800+30"]

{[%evp 18,69,-14,-60,17,0,-5,-3,41,6,7,0,16,7,0,-32,-44,-39,0,14,14,11,16,29,57,0,11,0,52,45,45,47,106,37,149,150,314,300,311,312,775,760,1283,1188,29984,29985,29985,29986,29990,29991,29991,29992,29992,29993]} 1. d4 {[%emt 0:00:00]} Nf6 {[%emt 0:00:06]} 2. c4 {[%emt 0:00:00]} c5 {[%emt 0:00:11]} 3. d5 {[%emt 0:00:00]} b5 {[%emt 0:00:11]} 4. cxb5 {[%emt 0:00:12]} a6 {[%emt 0:00:06][%cal Ba7a6,Ba6b5,Bb5b4][%mdl 32]} 5. Nc3 {[%emt 0:00:05]} axb5 {[%emt 0:00:23]} 6. e4 {[%emt 0:00:29]} b4 {[%emt 0:00:09]} 7. Nb5 {[%emt 0:00:11]} d6 {[%emt 0:00:11]} 8. Bc4 {[%emt 0:00:59]} Nbd7 {[%emt 0:03:34]} 9. Nf3 {[%emt 0:01:17]} Nb6 {[%emt 0:10:25]} 10. Bd3 {[%emt 0:01:53]} (10. b3 $1 $11) 10... Bd7 {[%emt 0:20:55] A57: Benko/Volga Gambit.} (10... g6 $1 $15) 11. Qe2 {[%emt 0:01:24] [#]} Qb8 $146 {[%emt 0:07:44][%cal Oc5c4]} ({Predecessor:} 11... Qc8 12. b3 c4 13. Bxc4 Nxc4 14. Qxc4 Qxc4 15. bxc4 Bxb5 16. cxb5 Nxe4 17. Rb1 Ra5 18. Bd2 Nxd2 19. Kxd2 {0-1 (35) Bouget,A (2140)-Saatdjian,T (2369) Avoine 2010}) 12. b3 {[%emt 0:04:01] Prevents c4. aiming for Bb2.} Nc8 {[%emt 0:11:57][%cal Of6e4] The position is equal.} 13. Nd2 {[%emt 0:08:22] Threatens to win with Bb2.} g6 {[%emt 0:04:31] ...Nh5 is the strong threat.} 14. a4 {[%emt 0:05:54]} bxa3 {[%emt 0:00:34]} 15. Rxa3 {[%emt 0:01:40]} Rxa3 {[%emt 0:00:17]} 16. Bxa3 {[%emt 0:03:15]} Bh6 {[%emt 0:00:18]} 17. f3 {[%emt 0:06:00]} Bxd2+ {[%emt 0:08:34]} (17... O-O $15) 18. Kxd2 $11 {[%emt 0:00:18]} O-O {[%emt 0:02:55]} 19. Bb2 {[%emt 0:02:19]} Nh5 {[%emt 0:04:14] Strongly threatening ...Nf4.} 20. g3 {[%emt 0:00:21] Prevents Nf4.} e6 {[%emt 0:00:11]} 21. Bc4 {[%emt 0:05:04] A strong pair of Bishops.} (21. dxe6 $1 $14 fxe6 22. Re1) 21... e5 {[%emt 0:17:11]} 22. Rf1 {[%emt 0:07:23]} Na7 {[%emt 0:01:05]} (22... Nb6 $11) 23. Nxa7 {[%emt 0:00:56]} Qxa7 {[%emt 0:00:02]} 24. Ra1 {[%emt 0:00:10]} Qc7 {[%emt 0:01:38]} (24... Qb8 $14) 25. Qe3 {[%emt 0:06:59]} ({White should play} 25. f4 $16) 25... Rb8 {[%emt 0:02:18]} (25... Qb8 $14) 26. f4 $16 {[%emt 0:02:50]} f6 {[%emt 0:00:09] [#] This costs Black the game.} (26... exf4 $16 27. Qc3 (27. gxf4 Bb5 $16) 27... f6) 27. fxe5 $1 $18 {[%emt 0:00:40]} fxe5 {[%emt 0:02:57]} 28. Bxe5 {[%emt 0:00:12] Hoping for Bb2.} Rf8 $2 {[%emt 0:00:03] [#]} (28... Bb5) 29. Ra6 $1 {[%emt 0:02:40]} Qb7 {[%emt 0:01:18]} (29... Bb5 30. Bxd6) 30. Rxd6 {[%emt 0:05:32] White threatens Qh6 and mate.} Ra8 {[%emt 0:00:52] [#]} 31. Rxg6+ $3 {[%emt 0:03:47][%mdl 512] White mates.} hxg6 {[%emt 0:00:06]} 32. Qh6 {[%emt 0:00:35]} Ra2+ {[%emt 0:00:52]} 33. Ke3 {[%emt 0:00:11]} Bb5 {[%emt 0:00:31]} 34. Qh8+ {[%emt 0:00:13]} Kf7 {[%emt 0:00:06]} 35. Qh7+ {[%emt 0:32:08][%mdl 64] Skewer.  Weighted Error Value: White=0.12 (very precise) /Black=0.66} 1-0